[Event "NK Rapid Vrouwen 2019"]
[Site "Amstelveen, Netherlands"]
[Date "2019.12.01"]
[Round "4.4"]
[White "Paulet, Iozefina"]
[Black "Jong-Muhren, Bianca de"]
[Result "1-0"]
[TimeControl "15m+10s"]
[WhiteTitle "WGM"]
[BlackTitle "WGM"]
[WhiteFideId "1213261"]
[BlackFideId "1008498"]
[WhiteElo "2294"]
[BlackElo "2249"]

1. e4 {[%clk 00:15:18]} {[%emt 00:00:01]} c5 {[%clk 00:15:19]} 2. Nf3 {[%clk
00:15:26]} {[%emt 00:00:02]} e6 {[%clk 00:15:28]} 3. b3 {[%clk 00:15:33]}
{[%emt 00:00:03]} Nc6 {[%clk 00:15:21]} {[%emt 00:00:18]} 4. Bb2 {[%clk
00:15:30]} {[%emt 00:00:13]} d6 {[%clk 00:15:12]} {[%emt 00:00:19]} 5. Bb5
{[%clk 00:15:34]} {[%emt 00:00:06]} Bd7 {[%clk 00:15:16]} {[%emt 00:00:06]} 6.
O-O {[%clk 00:15:39]} {[%emt 00:00:05]} a6 {[%clk 00:15:18]} {[%emt 00:00:09]}
7. Bxc6 {[%clk 00:15:41]} {[%emt 00:00:07]} Bxc6 {[%clk 00:15:27]} {[%emt
00:00:02]} 8. e5 {[%clk 00:15:50]} Bxf3 {[%clk 00:14:18]} {[%emt 00:01:19]} 9.
Qxf3 {[%clk 00:15:59]} {[%emt 00:00:01]} d5 {[%clk 00:14:20]} {[%emt 00:00:08]}
10. c4 {[%clk 00:16:08]} {[%emt 00:00:01]} Ne7 {[%clk 00:14:11]} {[%emt
00:00:19]} 11. cxd5 {[%clk 00:15:31]} {[%emt 00:00:47]} Qxd5 {[%clk 00:13:53]}
{[%emt 00:00:28]} 12. Qxd5 {[%clk 00:15:28]} {[%emt 00:00:13]} Nxd5 {[%clk
00:14:00]} {[%emt 00:00:03]} 13. Nc3 {[%clk 00:15:37]} Nf4 {[%clk 00:11:55]}
{[%emt 00:02:15]} 14. Ne4 {[%clk 00:15:01]} {[%emt 00:00:46]} Be7 {[%clk
00:11:16]} {[%emt 00:00:49]} 15. Ba3 {[%clk 00:13:54]} {[%emt 00:01:17]} b6
{[%clk 00:09:55]} {[%emt 00:01:30]} 16. g3 {[%clk 00:13:35]} {[%emt 00:00:29]}
Nd3 {[%clk 00:09:14]} {[%emt 00:00:52]} 17. f4 {[%clk 00:13:39]} {[%emt
00:00:06]} O-O {[%clk 00:09:22]} {[%emt 00:00:02]} 18. Rf3 {[%clk 00:13:46]}
{[%emt 00:00:03]} Rfd8 {[%clk 00:09:29]} {[%emt 00:00:02]} 19. Kf1 {[%clk
00:13:01]} {[%emt 00:00:55]} Rd4 {[%clk 00:09:23]} {[%emt 00:00:17]} 20. Nf2
{[%clk 00:12:56]} {[%emt 00:00:14]} Nxf2 {[%clk 00:08:20]} {[%emt 00:01:13]} 21.
Rxf2 {[%clk 00:13:04]} {[%emt 00:00:02]} Rad8 {[%clk 00:08:30]} 22. Rd1 {[%clk
00:11:46]} {[%emt 00:01:28]} g5 {[%clk 00:07:44]} {[%emt 00:00:56]} 23. Bb2
{[%clk 00:10:47]} {[%emt 00:01:08]} Rd3 {[%clk 00:07:52]} {[%emt 00:00:02]} 24.
Ke2 {[%clk 00:10:47]} {[%emt 00:00:10]} g4 {[%clk 00:06:19]} {[%emt 00:01:43]}
25. Ke1 {[%clk 00:08:31]} {[%emt 00:02:26]} Kg7 {[%clk 00:05:55]} {[%emt
00:00:34]} 26. Re2 {[%clk 00:08:37]} {[%emt 00:00:04]} Kg6 {[%clk 00:04:06]}
{[%emt 00:01:59]} 27. Rc1 {[%clk 00:07:00]} {[%emt 00:01:47]} Kf5 {[%clk
00:04:05]} {[%emt 00:00:11]} 28. Rc3 {[%clk 00:07:04]} {[%emt 00:00:06]} R3d5
{[%clk 00:04:04]} {[%emt 00:00:11]} 29. Rce3 {[%emt 00:02:04]} h5 {[%emt
00:00:54]} 30. Rg2 {[%clk 00:04:40]} h4 {[%clk 00:03:28]} {[%emt 00:00:42]} 31.
Kd1 {[%clk 00:03:54]} {[%emt 00:00:56]} b5 {[%clk 00:01:59]} {[%emt 00:01:40]}
32. Kc2 {[%clk 00:03:44]} {[%emt 00:00:19]} a5 {[%clk 00:01:41]} {[%emt
00:00:28]} 33. Bc3 {[%clk 00:02:04]} {[%emt 00:01:50]} h3 {[%clk 00:01:30]}
{[%emt 00:00:22]} 34. Rge2 {[%clk 00:02:07]} {[%emt 00:00:06]} a4 {[%clk
00:00:22]} {[%emt 00:01:19]} 35. bxa4 {[%clk 00:02:11]} {[%emt 00:00:06]} bxa4
{[%clk 00:00:27]} {[%emt 00:00:04]} 36. Re4 {[%clk 00:02:10]} {[%emt 00:00:11]}
Ra8 {[%clk 00:00:29]} {[%emt 00:00:08]} 37. Rc4 {[%clk 00:02:17]} {[%emt
00:00:03]} Rd7 {[%clk 00:00:14]} {[%emt 00:00:25]} 38. Ree4 {[%clk 00:02:23]}
{[%emt 00:00:03]} Rda7 {[%clk 00:00:16]} {[%emt 00:00:09]} 39. a3 {[%clk
00:01:53]} {[%emt 00:00:41]} Bd8 {[%clk 00:00:13]} {[%emt 00:00:13]} 40. d3
{[%clk 00:01:40]} {[%emt 00:00:22]} Bb6 {[%clk 00:00:21]} {[%emt 00:00:02]} 41.
Be1 {[%clk 00:01:40]} {[%emt 00:00:09]} Ra5 {[%clk 00:00:26]} {[%emt 00:00:06]}
42. Bxa5 {[%clk 00:01:47]} {[%emt 00:00:04]} Rxa5 {[%clk 00:00:30]} {[%emt
00:00:06]} 43. Rxa4 {[%clk 00:01:52]} {[%emt 00:00:04]} Rxa4 {[%clk 00:00:24]}
{[%emt 00:00:17]} 44. Rxa4 {[%clk 00:01:56]} {[%emt 00:00:07]} c4 {[%clk
00:00:32]} {[%emt 00:00:02]} 45. Kd1 {[%clk 00:00:33]} {[%emt 00:01:32]} Bg1
{[%clk 00:00:29]} {[%emt 00:00:13]} 46. dxc4 {[%clk 00:00:19]} {[%emt
00:00:25]} Bxh2 {[%clk 00:00:37]} {[%emt 00:00:02]} 47. Ke2 {[%clk 00:00:15]}
{[%emt 00:00:14]} Bxg3 {[%clk 00:00:42]} {[%emt 00:00:06]} 48. Kf1 {[%clk
00:00:24]} Bxf4 {[%clk 00:00:48]} {[%emt 00:00:03]} 49. c5 {[%clk 00:00:32]}
{[%emt 00:00:03]} Bxe5 {[%clk 00:00:46]} {[%emt 00:00:13]} 50. c6 {[%clk
00:00:36]} {[%emt 00:00:06]} Bd6 {[%clk 00:00:12]} {[%emt 00:00:44]} 51. Rd4
{[%clk 00:00:43]} {[%emt 00:00:03]} Bb8 {[%clk 00:00:13]} {[%emt 00:00:09]} 52.
Rd7 {[%clk 00:00:47]} {[%emt 00:00:06]} g3 {[%clk 00:00:15]} {[%emt 00:00:08]}
53. Rxf7+ {[%clk 00:00:53]} {[%emt 00:00:04]} Ke4 {[%clk 00:00:23]} {[%emt
00:00:02]} 54. Rg7 {[%clk 00:00:42]} {[%emt 00:00:21]} g2+ {[%clk 00:00:29]}
{[%emt 00:00:04]} 55. Kg1 {[%clk 00:00:45]} {[%emt 00:00:06]} Kf3 {[%clk
00:00:13]} {[%emt 00:00:27]} 56. Rf7+ {[%clk 00:00:40]} {[%emt 00:00:15]} Kg3
{[%clk 00:00:18]} {[%emt 00:00:05]} 57. Rg7+ {[%clk 00:00:44]} {[%emt
00:00:06]} Kf3 {[%clk 00:00:26]} {[%emt 00:00:01]} 58. c7 {[%clk 00:00:42]}
{[%emt 00:00:12]} Bxc7 {[%clk 00:00:12]} {[%emt 00:00:24]} 59. Rxc7 {[%clk
00:00:51]} {[%emt 00:00:01]} e5 {[%clk 00:00:18]} {[%emt 00:00:04]} 60. Rc3+
{[%clk 00:00:36]} {[%emt 00:00:25]} Kg4 {[%clk 00:00:27]} {[%emt 00:00:01]} 61.
Kh2 {[%clk 00:00:43]} {[%emt 00:00:03]} e4 {[%clk 00:00:35]} {[%emt 00:00:02]}
62. Rg3+ {[%clk 00:00:51]} {[%emt 00:00:01]} Kf4 {[%clk 00:00:44]} {[%emt
00:00:01]} 63. Rxh3 {[%clk 00:00:59]} {[%emt 00:00:02]} 1-0

[Event "NK Rapid Vrouwen 2019"]
[Site "Amstelveen, Netherlands"]
[Date "2019.12.01"]
[Round "5.1"]
[White "Lanchava, Tea"]
[Black "Paulet, Iozefina"]
[Result "1-0"]
[TimeControl "15m+10s"]
[WhiteTitle "IM"]
[BlackTitle "WGM"]
[WhiteFideId "1005308"]
[BlackFideId "1213261"]
[WhiteElo "2247"]
[BlackElo "2294"]

1. Nf3 {[%clk 00:15:19]} {[%emt 00:05:37]} Nf6 {[%clk 00:15:13]} {[%emt
00:00:08]} 2. b3 {[%clk 00:15:21]} {[%emt 00:00:08]} d6 {[%clk 00:15:18]}
{[%emt 00:00:05]} 3. g3 {[%clk 00:15:25]} {[%emt 00:00:05]} e5 {[%clk
00:15:19]} {[%emt 00:00:10]} 4. d3 {[%clk 00:15:28]} {[%emt 00:00:06]} Nc6
{[%clk 00:15:27]} {[%emt 00:00:02]} 5. Bg2 {[%clk 00:15:36]} {[%emt 00:00:02]}
g6 {[%clk 00:15:35]} {[%emt 00:00:03]} 6. Bb2 {[%clk 00:15:42]} {[%emt
00:00:03]} Bg7 {[%clk 00:15:44]} {[%emt 00:00:01]} 7. O-O {[%clk 00:15:48]}
{[%emt 00:00:04]} O-O {[%clk 00:15:52]} {[%emt 00:00:02]} 8. c4 {[%clk
00:15:46]} {[%emt 00:00:12]} h6 {[%clk 00:16:01]} {[%emt 00:00:02]} 9. a3
{[%clk 00:15:45]} {[%emt 00:00:12]} Be6 {[%clk 00:16:09]} {[%emt 00:00:01]} 10.
Nbd2 {[%clk 00:15:42]} {[%emt 00:00:12]} Qd7 {[%clk 00:16:18]} {[%emt
00:00:02]} 11. b4 {[%clk 00:15:42]} {[%emt 00:00:10]} Bh3 {[%clk 00:16:02]}
{[%emt 00:00:25]} 12. b5 {[%clk 00:15:35]} {[%emt 00:00:18]} Nd8 {[%clk
00:15:43]} {[%emt 00:00:29]} 13. a4 {[%clk 00:15:34]} {[%emt 00:00:11]} Bxg2
{[%clk 00:15:27]} {[%emt 00:00:25]} 14. Kxg2 {[%clk 00:15:41]} {[%emt
00:00:03]} Ne6 {[%clk 00:15:36]} {[%emt 00:00:01]} 15. Nb3 {[%clk 00:14:58]}
{[%emt 00:00:52]} Nh5 {[%clk 00:15:31]} {[%emt 00:00:15]} 16. Qd2 {[%clk
00:12:59]} {[%emt 00:02:08]} f5 {[%clk 00:15:21]} {[%emt 00:00:21]} 17. h3
{[%clk 00:12:45]} {[%emt 00:00:24]} e4 {[%clk 00:13:04]} {[%emt 00:02:27]} 18.
Nfd4 {[%clk 00:10:58]} {[%emt 00:01:57]} Ng5 {[%clk 00:08:38]} {[%emt
00:04:36]} 19. f4 {[%clk 00:09:49]} {[%emt 00:01:18]} exf3+ {[%clk 00:08:32]}
{[%emt 00:00:16]} 20. exf3 {[%clk 00:08:38]} {[%emt 00:01:22]} Nxh3 {[%clk
00:06:57]} {[%emt 00:01:45]} 21. Kxh3 {[%clk 00:07:37]} {[%emt 00:01:10]} f4+
{[%clk 00:07:06]} {[%emt 00:00:02]} 22. g4 {[%clk 00:07:45]} {[%emt 00:00:02]}
Ng3 {[%clk 00:07:12]} {[%emt 00:00:04]} 23. Rfe1 {[%clk 00:07:45]} {[%emt
00:00:10]} h5 {[%clk 00:07:05]} {[%emt 00:00:17]} 24. Ne6 {[%clk 00:07:15]}
{[%emt 00:00:39]} hxg4+ {[%clk 00:06:41]} {[%emt 00:00:34]} 25. fxg4 {[%clk
00:07:23]} {[%emt 00:00:03]} Bxb2 {[%clk 00:05:24]} {[%emt 00:01:27]} 26. Nxf8
{[%clk 00:05:58]} {[%emt 00:01:34]} Rxf8 {[%clk 00:05:33]} {[%emt 00:00:01]} 27.
Qxb2 {[%clk 00:05:50]} {[%emt 00:00:18]} Qh7+ {[%clk 00:05:42]} {[%emt
00:00:01]} 28. Kg2 {[%clk 00:05:58]} {[%emt 00:00:01]} Qh4 {[%clk 00:05:51]}
{[%emt 00:00:02]} 29. Kf3 {[%clk 00:03:38]} {[%emt 00:02:30]} Ne2 {[%clk
00:01:42]} {[%emt 00:04:18]} 30. Rxe2 {[%clk 00:01:17]} {[%emt 00:02:32]} Qg3+
{[%clk 00:01:52]} {[%emt 00:00:01]} 31. Ke4 {[%clk 00:01:26]} f3 {[%clk
00:02:01]} 32. Kd4 {[%clk 00:01:23]} {[%emt 00:00:13]} Qf4+ {[%clk 00:00:31]}
{[%emt 00:01:40]} 33. Kc3 {[%clk 00:01:32]} {[%emt 00:00:01]} fxe2 {[%clk
00:00:27]} {[%emt 00:00:13]} 34. Qxe2 {[%clk 00:01:41]} {[%emt 00:00:02]} c5
{[%clk 00:00:32]} {[%emt 00:00:05]} 35. Re1 {[%clk 00:01:33]} {[%emt 00:00:17]}
Kg7 {[%clk 00:00:28]} {[%emt 00:00:14]} 36. Qe4 {[%clk 00:01:38]} {[%emt
00:00:05]} Qf6+ {[%clk 00:00:18]} {[%emt 00:00:21]} 37. Kc2 {[%clk 00:01:47]}
{[%emt 00:00:01]} Rf7 {[%clk 00:00:26]} {[%emt 00:00:02]} 38. Nd2 {[%clk
00:01:45]} {[%emt 00:00:12]} Qd8 {[%clk 00:00:32]} {[%emt 00:00:04]} 39. Rf1
{[%clk 00:01:40]} {[%emt 00:00:15]} Rxf1 {[%clk 00:00:23]} {[%emt 00:00:19]} 40.
Nxf1 {[%clk 00:01:49]} Qa5 {[%clk 00:00:32]} {[%emt 00:00:01]} 41. Qxb7+ {[%clk
00:01:56]} {[%emt 00:00:03]} Kh6 {[%clk 00:00:39]} {[%emt 00:00:03]} 42. g5+
{[%clk 00:02:01]} {[%emt 00:00:06]} Kxg5 {[%clk 00:00:40]} {[%emt 00:00:09]} 43.
Qd5+ {[%clk 00:02:10]} Kh6 {[%clk 00:00:46]} {[%emt 00:00:04]} 44. Qxd6 {[%clk
00:02:14]} {[%emt 00:00:05]} Qxa4+ {[%clk 00:00:54]} {[%emt 00:00:02]} 45. Kd2
{[%clk 00:02:22]} {[%emt 00:00:01]} Qa1 {[%clk 00:00:39]} {[%emt 00:00:25]} 46.
Qf4+ {[%clk 00:01:57]} {[%emt 00:00:35]} Kg7 {[%clk 00:00:46]} {[%emt
00:00:03]} 47. Ke2 {[%clk 00:01:41]} {[%emt 00:00:26]} Qb2+ {[%clk 00:00:44]}
{[%emt 00:00:12]} 48. Kf3 {[%clk 00:01:49]} {[%emt 00:00:02]} Qb1 {[%clk
00:00:47]} {[%emt 00:00:08]} 49. Ke4 {[%clk 00:01:53]} {[%emt 00:00:06]} Qa1
{[%clk 00:00:29]} {[%emt 00:00:28]} 50. Qe5+ {[%clk 00:02:01]} {[%emt
00:00:02]} 1-0

[Event "NK Rapid Vrouwen 2019"]
[Site "Amstelveen, Netherlands"]
[Date "2019.12.01"]
[Round "5.2"]
[White "Jong-Muhren, Bianca de"]
[Black "Ratsma, Rosa"]
[Result "1-0"]
[TimeControl "15m+10s"]
[WhiteTitle "WGM"]
[BlackTitle "WIM"]
[WhiteFideId "1008498"]
[BlackFideId "1033662"]
[WhiteElo "2249"]
[BlackElo "2274"]

1. e4 {[%clk 00:15:19]} {[%emt 00:00:01]} c5 {[%clk 00:15:17]} {[%emt
00:00:03]} 2. Nf3 {[%clk 00:15:27]} {[%emt 00:00:02]} d6 {[%clk 00:15:26]}
{[%emt 00:00:01]} 3. d4 {[%clk 00:15:35]} {[%emt 00:00:02]} cxd4 {[%clk
00:15:35]} {[%emt 00:00:02]} 4. Nxd4 {[%clk 00:15:43]} {[%emt 00:00:01]} Nf6
{[%clk 00:15:43]} {[%emt 00:00:01]} 5. Nc3 {[%clk 00:15:52]} {[%emt 00:00:02]}
a6 {[%clk 00:15:52]} {[%emt 00:00:01]} 6. Be3 {[%clk 00:15:44]} {[%emt
00:00:18]} e6 {[%clk 00:15:55]} {[%emt 00:00:07]} 7. Be2 {[%clk 00:15:48]}
{[%emt 00:00:06]} Be7 {[%clk 00:15:55]} {[%emt 00:00:10]} 8. O-O {[%clk
00:15:47]} {[%emt 00:00:11]} O-O {[%clk 00:16:00]} {[%emt 00:00:06]} 9. f4
{[%clk 00:15:43]} {[%emt 00:00:13]} Qc7 {[%clk 00:15:49]} {[%emt 00:00:20]} 10.
a4 {[%clk 00:15:49]} {[%emt 00:00:05]} b6 {[%clk 00:15:13]} {[%emt 00:00:46]}
11. Bf3 {[%clk 00:13:41]} {[%emt 00:02:18]} Bb7 {[%clk 00:15:20]} {[%emt
00:00:04]} 12. g4 {[%clk 00:13:08]} {[%emt 00:00:42]} Nc6 {[%clk 00:14:22]}
{[%emt 00:01:07]} 13. g5 {[%clk 00:13:09]} {[%emt 00:00:09]} Nd7 {[%clk
00:14:26]} {[%emt 00:00:06]} 14. Bg2 {[%clk 00:11:12]} {[%emt 00:02:07]} Nxd4
{[%clk 00:14:04]} {[%emt 00:00:32]} 15. Bxd4 {[%clk 00:10:35]} {[%emt
00:00:47]} e5 {[%clk 00:14:07]} {[%emt 00:00:07]} 16. Be3 {[%clk 00:10:39]}
{[%emt 00:00:06]} exf4 {[%clk 00:13:38]} {[%emt 00:00:38]} 17. Bxf4 {[%clk
00:10:47]} {[%emt 00:00:02]} Qc5+ {[%clk 00:13:26]} {[%emt 00:00:23]} 18. Kh1
{[%clk 00:10:55]} {[%emt 00:00:02]} Rac8 {[%clk 00:11:59]} {[%emt 00:01:36]} 19.
Rf3 {[%clk 00:09:04]} {[%emt 00:02:01]} f6 {[%clk 00:11:02]} {[%emt 00:01:08]}
20. Bh3 {[%clk 00:06:44]} {[%emt 00:02:29]} f5 {[%clk 00:09:15]} {[%emt
00:01:57]} 21. Nd5 {[%clk 00:05:12]} {[%emt 00:01:43]} Bxd5 {[%clk 00:09:13]}
{[%emt 00:00:12]} 22. exd5 {[%clk 00:04:46]} {[%emt 00:00:35]} Qxc2 {[%clk
00:08:27]} {[%emt 00:00:56]} 23. Qxc2 {[%clk 00:04:23]} {[%emt 00:00:34]} Rxc2
{[%clk 00:08:36]} {[%emt 00:00:02]} 24. Re1 {[%clk 00:04:31]} {[%emt 00:00:01]}
Ne5 {[%clk 00:07:14]} {[%emt 00:01:32]} 25. Bxe5 {[%clk 00:04:36]} {[%emt
00:00:05]} dxe5 {[%clk 00:07:23]} {[%emt 00:00:01]} 26. Bxf5 {[%clk 00:03:53]}
{[%emt 00:00:53]} Rxb2 {[%clk 00:06:16]} {[%emt 00:01:18]} 27. Rxe5 {[%clk
00:03:51]} {[%emt 00:00:12]} Bd6 {[%clk 00:05:56]} {[%emt 00:00:29]} 28. Be6+
{[%clk 00:03:57]} {[%emt 00:00:03]} Kh8 {[%clk 00:06:05]} {[%emt 00:00:02]} 29.
Rxf8+ {[%clk 00:03:42]} {[%emt 00:00:26]} Bxf8 {[%clk 00:06:13]} {[%emt
00:00:02]} 30. Bc8 {[%clk 00:02:02]} {[%emt 00:01:49]} Kg8 {[%clk 00:06:02]}
{[%emt 00:00:20]} 31. Be6+ {[%clk 00:01:47]} {[%emt 00:00:26]} Kh8 {[%clk
00:06:11]} {[%emt 00:00:01]} 32. Bc8 {[%clk 00:01:54]} {[%emt 00:00:03]} Kg8
{[%clk 00:05:39]} {[%emt 00:00:42]} 33. Re6 {[%clk 00:01:25]} {[%emt 00:00:39]}
Rd2 {[%clk 00:04:05]} {[%emt 00:01:44]} 34. Rxb6 {[%clk 00:01:26]} {[%emt
00:00:10]} Kf7 {[%clk 00:02:49]} {[%emt 00:01:25]} 35. Rxa6 {[%clk 00:01:24]}
{[%emt 00:00:13]} Bc5 {[%clk 00:02:41]} {[%emt 00:00:18]} 36. Rc6 {[%clk
00:00:52]} {[%emt 00:00:42]} Be3 {[%clk 00:02:25]} {[%emt 00:00:26]} 37. g6+
{[%clk 00:00:16]} {[%emt 00:00:45]} hxg6 {[%clk 00:02:30]} {[%emt 00:00:04]} 38.
a5 {[%clk 00:00:17]} {[%emt 00:00:10]} Bf4 {[%clk 00:02:19]} {[%emt 00:00:21]}
39. h3 {[%clk 00:00:17]} {[%emt 00:00:10]} Rh2+ {[%clk 00:02:00]} {[%emt
00:00:29]} 40. Kg1 {[%clk 00:00:26]} {[%emt 00:00:05]} 1-0

[Event "NK Rapid Vrouwen 2019"]
[Site "Amstelveen, Netherlands"]
[Date "2019.12.01"]
[Round "5.3"]
[White "Roebers, Eline"]
[Black "Haast, Anne"]
[Result "1-0"]
[TimeControl "15m+10s"]
[BlackTitle "WGM"]
[WhiteFideId "1058401"]
[BlackFideId "1017292"]
[WhiteElo "2102"]
[BlackElo "2288"]

1. e4 {[%clk 00:15:18]} {[%emt 00:00:01]} c5 {[%clk 00:15:19]} {[%emt
00:00:01]} 2. Nf3 {[%clk 00:15:27]} {[%emt 00:00:01]} e6 {[%clk 00:15:28]}
{[%emt 00:00:01]} 3. d4 {[%clk 00:15:36]} cxd4 {[%clk 00:15:37]} {[%emt
00:00:01]} 4. Nxd4 {[%clk 00:15:45]} {[%emt 00:00:01]} Nc6 {[%clk 00:15:46]}
{[%emt 00:00:01]} 5. Nc3 {[%clk 00:15:54]} {[%emt 00:00:01]} Qc7 {[%clk
00:15:55]} 6. f4 {[%clk 00:16:02]} {[%emt 00:00:02]} a6 {[%clk 00:15:58]}
{[%emt 00:00:07]} 7. Nxc6 {[%clk 00:16:10]} {[%emt 00:00:02]} Qxc6 {[%clk
00:15:49]} {[%emt 00:00:18]} 8. Bd3 {[%clk 00:16:18]} {[%emt 00:00:01]} b5
{[%clk 00:15:42]} {[%emt 00:00:17]} 9. Qe2 {[%clk 00:16:16]} {[%emt 00:00:12]}
Bb7 {[%clk 00:15:40]} {[%emt 00:00:12]} 10. Bd2 {[%clk 00:15:57]} {[%emt
00:00:29]} Bc5 {[%clk 00:15:46]} {[%emt 00:00:05]} 11. O-O-O {[%clk 00:15:21]}
{[%emt 00:00:45]} Ne7 {[%clk 00:15:22]} {[%emt 00:00:34]} 12. a3 {[%clk
00:15:20]} {[%emt 00:00:11]} O-O {[%clk 00:15:17]} {[%emt 00:00:15]} 13. Qh5
{[%clk 00:14:35]} {[%emt 00:00:55]} b4 {[%clk 00:14:26]} {[%emt 00:01:02]} 14.
axb4 {[%clk 00:14:40]} {[%emt 00:00:04]} Bxb4 {[%clk 00:14:33]} {[%emt
00:00:02]} 15. e5 {[%clk 00:12:58]} {[%emt 00:01:52]} g6 {[%clk 00:14:36]}
{[%emt 00:00:07]} 16. Qh4 {[%clk 00:11:59]} {[%emt 00:01:09]} Nf5 {[%clk
00:13:58]} {[%emt 00:00:48]} 17. Bxf5 {[%clk 00:11:30]} {[%emt 00:00:38]} exf5
{[%clk 00:14:07]} {[%emt 00:00:01]} 18. Nd5 {[%clk 00:09:47]} {[%emt 00:01:53]}
Qxd5 {[%clk 00:13:08]} {[%emt 00:01:09]} 19. Bxb4 {[%clk 00:09:56]} {[%emt
00:00:01]} Qxg2 {[%clk 00:13:16]} {[%emt 00:00:02]} 20. Rhg1 {[%clk 00:08:47]}
{[%emt 00:01:19]} Qe2 {[%clk 00:13:22]} {[%emt 00:00:04]} 21. Bxf8 {[%clk
00:08:07]} {[%emt 00:00:50]} Rxf8 {[%clk 00:13:31]} {[%emt 00:00:02]} 22. Rge1
{[%clk 00:06:40]} {[%emt 00:01:37]} Qb5 {[%clk 00:13:37]} {[%emt 00:00:04]} 23.
Qe7 {[%clk 00:05:38]} {[%emt 00:01:12]} Bc6 {[%clk 00:13:22]} {[%emt 00:00:25]}
24. Kb1 {[%clk 00:04:52]} {[%emt 00:00:56]} Qc4 {[%clk 00:13:00]} {[%emt
00:00:32]} 25. Rf1 {[%clk 00:03:55]} {[%emt 00:01:06]} Qe2 {[%clk 00:12:18]}
{[%emt 00:00:52]} 26. h4 {[%clk 00:03:03]} {[%emt 00:01:03]} Rc8 {[%clk
00:12:09]} {[%emt 00:00:19]} 27. Qc5 {[%clk 00:02:11]} {[%emt 00:01:02]} Bb7
{[%clk 00:11:54]} {[%emt 00:00:25]} 28. Qf2 {[%clk 00:02:14]} {[%emt 00:00:07]}
Qb5 {[%clk 00:12:02]} {[%emt 00:00:02]} 29. Qd4 {[%clk 00:01:43]} {[%emt
00:00:41]} Be4 {[%clk 00:11:20]} {[%emt 00:00:51]} 30. Rf2 {[%clk 00:01:50]}
{[%emt 00:00:03]} Rb8 {[%clk 00:11:19]} {[%emt 00:00:11]} 31. h5 {[%clk
00:01:43]} {[%emt 00:00:17]} h6 {[%clk 00:09:47]} {[%emt 00:01:42]} 32. hxg6
{[%clk 00:01:24]} {[%emt 00:00:29]} fxg6 {[%clk 00:09:56]} 33. Qc3 {[%clk
00:00:49]} {[%emt 00:00:45]} Qc6 {[%clk 00:09:20]} {[%emt 00:00:46]} 34. Qxc6
{[%clk 00:00:54]} {[%emt 00:00:05]} Bxc6 {[%clk 00:08:06]} {[%emt 00:01:25]} 35.
Rd6 {[%clk 00:00:55]} {[%emt 00:00:09]} Kf7 {[%clk 00:08:15]} {[%emt 00:00:01]}
36. Rfd2 {[%clk 00:00:38]} {[%emt 00:00:26]} Rb7 {[%clk 00:08:01]} {[%emt
00:00:24]} 37. e6+ {[%clk 00:00:20]} {[%emt 00:00:28]} Ke7 {[%clk 00:08:11]}
{[%emt 00:00:01]} 38. exd7 {[%clk 00:00:27]} {[%emt 00:00:03]} Rxd7 {[%clk
00:08:20]} 39. Rxd7+ {[%clk 00:00:19]} {[%emt 00:00:17]} Bxd7 {[%clk 00:08:29]}
{[%emt 00:00:01]} 40. Rh2 {[%clk 00:00:17]} {[%emt 00:00:12]} h5 {[%clk
00:08:36]} {[%emt 00:00:03]} 41. c4 {[%clk 00:00:23]} {[%emt 00:00:05]} Be6
{[%clk 00:08:03]} {[%emt 00:00:43]} 42. c5 {[%clk 00:00:21]} {[%emt 00:00:11]}
Bd5 {[%clk 00:07:32]} {[%emt 00:00:41]} 43. Kc2 {[%clk 00:00:22]} {[%emt
00:00:10]} a5 {[%clk 00:06:55]} {[%emt 00:00:46]} 44. Kc3 {[%clk 00:00:29]}
{[%emt 00:00:03]} Kd7 {[%clk 00:07:04]} 45. Kd4 {[%clk 00:00:37]} {[%emt
00:00:02]} Kc6 {[%clk 00:07:13]} {[%emt 00:00:02]} 46. Re2 {[%clk 00:00:16]}
{[%emt 00:00:31]} Be4 {[%clk 00:06:26]} {[%emt 00:00:56]} 47. Re3 {[%clk
00:00:19]} {[%emt 00:00:07]} Bd5 {[%clk 00:03:57]} {[%emt 00:02:39]} 48. Ra3
{[%clk 00:00:23]} {[%emt 00:00:06]} Bg2 {[%clk 00:01:10]} {[%emt 00:02:57]} 49.
Rg3 {[%clk 00:00:31]} {[%emt 00:00:02]} Be4 {[%clk 00:01:14]} {[%emt 00:00:06]}
50. Rxg6+ {[%clk 00:00:40]} {[%emt 00:00:02]} Kc7 {[%clk 00:00:59]} {[%emt
00:00:25]} 51. Rg5 {[%clk 00:00:44]} {[%emt 00:00:05]} Bf3 {[%clk 00:01:04]}
{[%emt 00:00:05]} 52. Rxf5 {[%clk 00:00:49]} {[%emt 00:00:06]} h4 {[%clk
00:01:13]} 53. Rf7+ {[%clk 00:00:57]} {[%emt 00:00:01]} Kc6 {[%clk 00:01:22]}
{[%emt 00:00:01]} 54. Rf6+ {[%clk 00:01:04]} {[%emt 00:00:04]} Kb5 {[%clk
00:01:20]} {[%emt 00:00:13]} 55. Rh6 {[%clk 00:00:58]} {[%emt 00:00:15]} 1-0